[Event "*** Titled Tuesday Blitz"]
[Site "Chess.com"]
[Date "2018.01.02"]
[Round "1"]
[White "shepi13"]
[Black "nOcHeaTiNgKiD"]
[Result "1/2-1/2"]
[WhiteElo "1980"]
[BlackElo "2420"]
[TimeControl "180+2"]
[EndTime "13:03:41 PST"]
[Termination "Game drawn by agreement"]

1. d4 {[%clk 0:03:01.9]} 1... Nf6 {[%clk 0:02:57.9]} 2. c4 {[%clk 0:03:02.2]}
2... e6 {[%clk 0:02:58.2]} 3. Nf3 {[%clk 0:03:02.7]} 3... d5 {[%clk 0:02:59.4]}
4. Nc3 {[%clk 0:03:03]} 4... Be7 {[%clk 0:03:00.6]} 5. Bf4 {[%clk 0:03:02.9]}
5... O-O {[%clk 0:03:01.4]} 6. e3 {[%clk 0:03:03.1]} 6... b6 {[%clk 0:03:01.7]}
7. Be2 {[%clk 0:02:57.3]} 7... Bb7 {[%clk 0:02:56.5]} 8. O-O {[%clk 0:02:56.7]}
8... Nbd7 {[%clk 0:02:49.8]} 9. Rc1 {[%clk 0:02:52.3]} 9... c5 {[%clk
0:02:48.1]} 10. cxd5 {[%clk 0:02:50.5]} 10... Nxd5 {[%clk 0:02:47.4]} 11. Nxd5
{[%clk 0:02:50.9]} 11... Bxd5 {[%clk 0:02:47.8]} 12. Ne5 {[%clk 0:02:50.2]}
12... Nxe5 {[%clk 0:02:46.5]} 13. Bxe5 {[%clk 0:02:50.2]} 13... cxd4 {[%clk
0:02:34.4]} 14. Bxd4 {[%clk 0:02:45.4]} 14... Bf6 {[%clk 0:02:33.3]} 15. Bc4
{[%clk 0:02:27.8]} 15... Bxd4 {[%clk 0:02:18.4]} 16. Qxd4 {[%clk 0:02:26.8]}
16... Bxc4 {[%clk 0:02:17.7]} 17. Rxc4 {[%clk 0:02:25.6]} 17... Qxd4 {[%clk
0:02:16.6]} 18. Rxd4 {[%clk 0:02:25.5]} 18... Rfd8 {[%clk 0:02:07.3]} 19. Rfd1
{[%clk 0:02:20.2]} 19... Rxd4 {[%clk 0:02:07.7]} 20. Rxd4 {[%clk 0:02:21]} 20...
Rc8 {[%clk 0:02:08.4]} 21. g3 {[%clk 0:02:21.9]} 21... g6 {[%clk 0:02:01.7]} 22.
Rd7 {[%clk 0:02:17.3]} 22... Rc2 {[%clk 0:02:02.1]} 23. Rxa7 {[%clk 0:02:17.3]}
23... Rxb2 {[%clk 0:02:03]} 24. h4 {[%clk 0:02:13.9]} 24... h5 {[%clk
0:02:03.5]} 25. Kg2 {[%clk 0:02:14.5]} 25... Kg7 {[%clk 0:02:03.7]} 26. Rb7
{[%clk 0:02:15]} 1/2-1/2

[Event "*** Titled Tuesday Blitz"]
[Site "Chess.com"]
[Date "2018.01.02"]
[Round "1"]
[White "AdrianaNikolova"]
[Black "GMAkobianSTL"]
[Result "0-1"]
[WhiteElo "2363"]
[BlackElo "2663"]
[TimeControl "180+2"]
[EndTime "13:04:00 PST"]
[Termination "GMAkobianSTL won by resignation"]

1. e4 {[%clk 0:03:01.9]} 1... d6 {[%clk 0:02:59.5]} 2. d4 {[%clk 0:03:02]} 2...
Nf6 {[%clk 0:03:00.4]} 3. Nc3 {[%clk 0:03:03]} 3... c6 {[%clk 0:03:01]} 4. a4
{[%clk 0:02:59.8]} 4... Qc7 {[%clk 0:02:55.7]} 5. h3 {[%clk 0:02:59.4]} 5... e5
{[%clk 0:02:56.2]} 6. Be3 {[%clk 0:02:59.2]} 6... Be7 {[%clk 0:02:56.2]} 7. Nge2
{[%clk 0:02:59]} 7... O-O {[%clk 0:02:56.4]} 8. g4 {[%clk 0:02:59.9]} 8... Re8
{[%clk 0:02:56.9]} 9. Bg2 {[%clk 0:03:00.6]} 9... Nbd7 {[%clk 0:02:57.3]} 10.
O-O {[%clk 0:03:01.4]} 10... Nf8 {[%clk 0:02:57.8]} 11. Ng3 {[%clk 0:03:02.3]}
11... Ng6 {[%clk 0:02:58.1]} 12. Nf5 {[%clk 0:02:56.8]} 12... Bf8 {[%clk
0:02:57.2]} 13. g5 {[%clk 0:02:56.2]} 13... Nxe4 {[%clk 0:02:50.8]} 14. Bxe4
{[%clk 0:02:45.5]} 14... d5 {[%clk 0:02:51.8]} 15. Nh6+ {[%clk 0:02:31.2]} 15...
gxh6 {[%clk 0:02:52]} 16. Bxg6 {[%clk 0:02:30.6]} 16... hxg6 {[%clk 0:02:49.5]}
17. gxh6 {[%clk 0:02:31.6]} 17... Bxh3 {[%clk 0:02:49.3]} 18. Re1 {[%clk
0:02:31.9]} 18... e4 {[%clk 0:02:39.5]} 19. Qd2 {[%clk 0:02:24]} 19... Qd7
{[%clk 0:01:59.3]} 20. Bf4 {[%clk 0:02:01.9]} 20... Qg4+ {[%clk 0:01:58]} 21.
Bg3 {[%clk 0:02:01.6]} 21... Qf3 {[%clk 0:01:58.8]} 22. h7+ {[%clk 0:01:51.9]}
22... Kxh7 {[%clk 0:01:57.7]} 0-1

[Event "*** Titled Tuesday Blitz"]
[Site "Chess.com"]
[Date "2018.01.02"]
[Round "1"]
[White "pastouche06"]
[Black "angieflynn"]
[Result "1-0"]
[WhiteElo "2425"]
[BlackElo "1871"]
[TimeControl "180+2"]
[EndTime "13:04:15 PST"]
[Termination "pastouche06 won by resignation"]

1. d4 {[%clk 0:02:58.2]} 1... f5 {[%clk 0:02:57.2]} 2. Bg5 {[%clk 0:02:57.5]}
2... Nf6 {[%clk 0:02:51.1]} 3. Bxf6 {[%clk 0:02:56.4]} 3... gxf6 {[%clk
0:02:47]} 4. e4 {[%clk 0:02:50.7]} 4... e6 {[%clk 0:02:32.7]} 5. Qh5+ {[%clk
0:02:43.8]} 5... Ke7 {[%clk 0:02:33.8]} 6. exf5 {[%clk 0:02:45.2]} 6... d5
{[%clk 0:02:26.7]} 7. fxe6 {[%clk 0:02:38.7]} 7... Bxe6 {[%clk 0:02:27.5]} 8.
Nd2 {[%clk 0:02:39.6]} 8... c5 {[%clk 0:02:08.3]} 9. O-O-O {[%clk 0:02:24.3]}
9... Qa5 {[%clk 0:02:00.7]} 10. Kb1 {[%clk 0:02:20.9]} 10... Nc6 {[%clk
0:01:50.2]} 11. Nb3 {[%clk 0:02:21.1]} 11... Qb4 {[%clk 0:01:15.1]} 12. c3
{[%clk 0:02:11.3]} 12... Qb6 {[%clk 0:01:01.2]} 13. Nxc5 {[%clk 0:02:07.8]}
13... Bf7 {[%clk 0:00:52]} 14. Re1+ {[%clk 0:02:07.3]} 1-0

[Event "*** Titled Tuesday Blitz"]
[Site "Chess.com"]
[Date "2018.01.02"]
[Round "1"]
[White "BillForster"]
[Black "walkingcreep"]
[Result "0-1"]
[WhiteElo "1510"]
[BlackElo "2419"]
[TimeControl "180+2"]
[EndTime "13:05:17 PST"]
[Termination "walkingcreep won by resignation"]

1. d4 {[%clk 0:03:01.9]} 1... Nf6 {[%clk 0:03:00.6]} 2. c4 {[%clk 0:03:02.6]}
2... g6 {[%clk 0:03:01.4]} 3. Nc3 {[%clk 0:03:03.1]} 3... Bg7 {[%clk 0:03:02.4]}
4. e4 {[%clk 0:03:02.2]} 4... d6 {[%clk 0:03:03.2]} 5. Be2 {[%clk 0:03:01]} 5...
O-O {[%clk 0:03:03.3]} 6. g4 {[%clk 0:02:59.5]} 6... e5 {[%clk 0:02:55.7]} 7. d5
{[%clk 0:02:33.2]} 7... a5 {[%clk 0:02:51]} 8. h4 {[%clk 0:02:23]} 8... c6
{[%clk 0:02:41.5]} 9. g5 {[%clk 0:02:14.2]} 9... Ne8 {[%clk 0:02:41.6]} 10. h5
{[%clk 0:02:08.9]} 10... a4 {[%clk 0:02:33.6]} 11. Be3 {[%clk 0:01:51.4]} 11...
Qa5 {[%clk 0:02:28.5]} 12. Qd2 {[%clk 0:01:25.4]} 12... Nd7 {[%clk 0:02:23]} 13.
h6 {[%clk 0:01:23.2]} 13... Bh8 {[%clk 0:02:23.4]} 14. f3 {[%clk 0:01:18]} 14...
Nc5 {[%clk 0:02:16.5]} 15. Kf2 {[%clk 0:01:14.8]} 15... f5 {[%clk 0:02:14.5]}
16. Bxc5 {[%clk 0:01:08.1]} 16... Qxc5+ {[%clk 0:02:13]} 17. Qe3 {[%clk
0:01:03.8]} 17... Qb4 {[%clk 0:02:03.1]} 18. Rb1 {[%clk 0:00:58.3]} 18... fxe4
{[%clk 0:01:53.6]} 19. Nxe4 {[%clk 0:00:57.2]} 19... Bf5 {[%clk 0:01:53.8]} 20.
Nh3 {[%clk 0:00:47.6]} 20... cxd5 {[%clk 0:01:53.2]} 21. cxd5 {[%clk 0:00:44.8]}
21... Bxe4 {[%clk 0:01:52.1]} 0-1

[Event "*** Titled Tuesday Blitz"]
[Site "Chess.com"]
[Date "2018.01.02"]
[Round "1"]
[White "hermionegrangermagic"]
[Black "DiamondCrusher22"]
[Result "0-1"]
[WhiteElo "2407"]
[BlackElo "1952"]
[TimeControl "180+2"]
[EndTime "13:05:58 PST"]
[Termination "DiamondCrusher22 won by checkmate"]

1. e4 {[%clk 0:03:01.9]} 1... e5 {[%clk 0:03:00.8]} 2. Nf3 {[%clk 0:03:00.8]}
2... Nc6 {[%clk 0:03:01.5]} 3. Bb5 {[%clk 0:03:01.2]} 3... Nf6 {[%clk
0:03:02.6]} 4. O-O {[%clk 0:03:00.6]} 4... Nxe4 {[%clk 0:03:03.3]} 5. d4 {[%clk
0:03:01.7]} 5... Nd6 {[%clk 0:03:03.9]} 6. Bxc6 {[%clk 0:03:03]} 6... dxc6
{[%clk 0:03:05.4]} 7. dxe5 {[%clk 0:03:04]} 7... Nf5 {[%clk 0:03:06.9]} 8. Qxd8+
{[%clk 0:03:05.2]} 8... Kxd8 {[%clk 0:03:08.4]} 9. Nc3 {[%clk 0:03:06.5]} 9...
Ke8 {[%clk 0:03:09.2]} 10. h3 {[%clk 0:03:07.8]} 10... Be7 {[%clk 0:03:09.4]}
11. Bf4 {[%clk 0:03:08.3]} 11... Be6 {[%clk 0:03:10.4]} 12. Rad1 {[%clk
0:03:08.7]} 12... Rd8 {[%clk 0:03:11]} 13. Ne2 {[%clk 0:03:09.2]} 13... Bd5
{[%clk 0:03:05.3]} 14. Nd2 {[%clk 0:03:04]} 14... Kd7 {[%clk 0:02:39.8]} 15. c4
{[%clk 0:03:03.3]} 15... Be6 {[%clk 0:02:40.7]} 16. g4 {[%clk 0:03:03.5]} 16...
Nh4 {[%clk 0:02:38.8]} 17. Bg3 {[%clk 0:03:04]} 17... Kc8 {[%clk 0:02:25.1]} 18.
f4 {[%clk 0:03:02.9]} 18... f5 {[%clk 0:01:47.1]} 19. Bxh4 {[%clk 0:02:56]}
19... Bxh4 {[%clk 0:01:44.1]} 20. g5 {[%clk 0:02:56.1]} 20... h6 {[%clk
0:01:40.4]} 21. g6 {[%clk 0:02:56.6]} 21... Be7 {[%clk 0:01:33.9]} 22. Nf3
{[%clk 0:02:54.6]} 22... Bxc4 {[%clk 0:01:25.9]} 23. Rxd8+ {[%clk 0:02:53]}
23... Rxd8 {[%clk 0:01:26.1]} 24. Re1 {[%clk 0:02:54.3]} 24... Rd3 {[%clk
0:01:14.8]} 25. Kf2 {[%clk 0:02:47.6]} 25... Bc5+ {[%clk 0:01:15.1]} 26. Kg2
{[%clk 0:02:45.3]} 26... Bd5 {[%clk 0:01:15.6]} 27. Rf1 {[%clk 0:02:46.4]} 27...
Rd2 {[%clk 0:01:04.8]} 28. Re1 {[%clk 0:02:47.4]} 28... Rxb2 {[%clk 0:01:01.1]}
29. Kg3 {[%clk 0:02:47.3]} 29... Bb4 {[%clk 0:01:00.8]} 30. Rd1 {[%clk
0:02:37.4]} 30... Rxe2 {[%clk 0:01:00.7]} 31. Nh4 {[%clk 0:02:37.3]} 31... Be1+
{[%clk 0:01:00.2]} 32. Rxe1 {[%clk 0:02:32.5]} 32... Rxe1 {[%clk 0:01:00.8]} 33.
Nxf5 {[%clk 0:02:33.6]} 33... Kd7 {[%clk 0:00:50.5]} 34. Kf2 {[%clk 0:02:33.3]}
34... Ra1 {[%clk 0:00:47.8]} 35. Nxg7 {[%clk 0:02:33.8]} 35... Rxa2+ {[%clk
0:00:49.1]} 36. Kg3 {[%clk 0:02:33.6]} 36... Rg2+ {[%clk 0:00:48.9]} 37. Kh4
{[%clk 0:02:34.4]} 37... Rxg6 {[%clk 0:00:49.7]} 38. Nh5 {[%clk 0:02:34.9]}
38... Bf3 {[%clk 0:00:46.2]} 39. Nf6+ {[%clk 0:02:33.5]} 39... Rxf6 {[%clk
0:00:46.6]} 40. exf6 {[%clk 0:02:34.3]} 40... Ke6 {[%clk 0:00:47.8]} 41. f5+
{[%clk 0:02:34.6]} 41... Kxf6 {[%clk 0:00:48.4]} 42. Kg3 {[%clk 0:02:35.5]}
42... Bd5 {[%clk 0:00:49.5]} 43. Kf4 {[%clk 0:02:37]} 43... a5 {[%clk
0:00:50.4]} 44. h4 {[%clk 0:02:38.6]} 44... a4 {[%clk 0:00:51]} 45. Ke3 {[%clk
0:02:39.6]} 45... a3 {[%clk 0:00:52]} 46. Kd4 {[%clk 0:02:40]} 46... a2 {[%clk
0:00:53.2]} 47. Kc5 {[%clk 0:02:40.9]} 47... a1=Q {[%clk 0:00:52.5]} 48. h5
{[%clk 0:02:41.4]} 48... Qc3# {[%clk 0:00:53.4]} 0-1

[Event "*** Titled Tuesday Blitz"]
[Site "Chess.com"]
[Date "2018.01.02"]
[Round "1"]
[White "DagurR"]
[Black "krzyzan94"]
[Result "0-1"]
[WhiteElo "2311"]
[BlackElo "2605"]
[TimeControl "180+2"]
[EndTime "13:06:09 PST"]
[Termination "krzyzan94 won by resignation"]

1. b3 {[%clk 0:02:58]} 1... d5 {[%clk 0:03:00.1]} 2. Bb2 {[%clk 0:02:59.2]} 2...
Nc6 {[%clk 0:02:57.7]} 3. Nf3 {[%clk 0:03:00.4]} 3... Nf6 {[%clk 0:02:57.9]} 4.
e3 {[%clk 0:02:58.9]} 4... a6 {[%clk 0:02:58.7]} 5. c4 {[%clk 0:02:58]} 5... e6
{[%clk 0:02:56.4]} 6. d3 {[%clk 0:02:47]} 6... Bb4+ {[%clk 0:02:49.8]} 7. Nbd2
{[%clk 0:02:47.6]} 7... O-O {[%clk 0:02:47.3]} 8. Be2 {[%clk 0:02:47.4]} 8...
Qe7 {[%clk 0:02:42.1]} 9. a3 {[%clk 0:02:45.6]} 9... Bd6 {[%clk 0:02:42.5]} 10.
O-O {[%clk 0:02:45.3]} 10... b5 {[%clk 0:02:35.4]} 11. d4 {[%clk 0:02:28.8]}
11... bxc4 {[%clk 0:02:33.3]} 12. bxc4 {[%clk 0:02:29.7]} 12... dxc4 {[%clk
0:02:34.6]} 13. Nxc4 {[%clk 0:02:29.3]} 13... a5 {[%clk 0:02:18.5]} 14. Qc2
{[%clk 0:02:30.4]} 14... Bb7 {[%clk 0:02:15.9]} 15. e4 {[%clk 0:02:16.8]} 15...
Bf4 {[%clk 0:02:15.4]} 16. Rfd1 {[%clk 0:01:42.2]} 16... Rfd8 {[%clk 0:02:04.4]}
17. d5 {[%clk 0:01:18.1]} 17... exd5 {[%clk 0:02:04.3]} 18. exd5 {[%clk
0:01:20]} 18... Rxd5 {[%clk 0:01:59.8]} 19. Rxd5 {[%clk 0:01:17.7]} 19... Nxd5
{[%clk 0:02:01.7]} 20. Rd1 {[%clk 0:00:58.5]} 20... Nf6 {[%clk 0:02:00.9]} 21.
g3 {[%clk 0:00:51.1]} 21... Bh6 {[%clk 0:02:01.4]} 22. Nh4 {[%clk 0:00:52.5]}
22... Re8 {[%clk 0:01:54.8]} 23. Bd3 {[%clk 0:00:52]} 23... g6 {[%clk
0:01:45.5]} 24. Ng2 {[%clk 0:00:42.5]} 24... Bg7 {[%clk 0:01:40.5]} 25. Nce3
{[%clk 0:00:42.9]} 25... Ne5 {[%clk 0:01:40.3]} 26. Bf1 {[%clk 0:00:40]} 26...
Nf3+ {[%clk 0:01:41.3]} 27. Kh1 {[%clk 0:00:41.6]} 27... Ne4 {[%clk 0:01:42.9]}
28. Bxg7 {[%clk 0:00:40.8]} 28... Kxg7 {[%clk 0:01:44.8]} 29. Bb5 {[%clk
0:00:38.7]} 29... Rd8 {[%clk 0:01:44.1]} 30. Rc1 {[%clk 0:00:39.2]} 30... Rd2
{[%clk 0:01:44.4]} 0-1

[Event "*** Titled Tuesday Blitz"]
[Site "Chess.com"]
[Date "2018.01.02"]
[Round "1"]
[White "chito89"]
[Black "FrankieJay"]
[Result "1-0"]
[WhiteElo "2593"]
[BlackElo "2304"]
[TimeControl "180+2"]
[EndTime "13:06:10 PST"]
[Termination "chito89 won by resignation"]

1. d4 {[%clk 0:02:58.7]} 1... Nf6 {[%clk 0:03:00.6]} 2. c4 {[%clk 0:02:59.6]}
2... g6 {[%clk 0:03:01.6]} 3. Nf3 {[%clk 0:02:58.3]} 3... Bg7 {[%clk 0:03:02.4]}
4. g3 {[%clk 0:02:59.7]} 4... O-O {[%clk 0:03:03.1]} 5. Bg2 {[%clk 0:03:01.4]}
5... c6 {[%clk 0:03:04.6]} 6. O-O {[%clk 0:03:02.3]} 6... d5 {[%clk 0:03:06.2]}
7. Qb3 {[%clk 0:03:01.3]} 7... Qb6 {[%clk 0:02:44.3]} 8. Nc3 {[%clk 0:03:01.3]}
8... Be6 {[%clk 0:02:33.8]} 9. Ng5 {[%clk 0:02:54.5]} 9... dxc4 {[%clk
0:02:19.4]} 10. Qa4 {[%clk 0:02:54.7]} 10... Bd5 {[%clk 0:01:49.5]} 11. e4
{[%clk 0:02:42.4]} 11... h6 {[%clk 0:01:50.2]} 12. exd5 {[%clk 0:02:37.2]} 12...
hxg5 {[%clk 0:01:51.1]} 13. dxc6 {[%clk 0:02:32.2]} 13... Nxc6 {[%clk
0:01:48.3]} 14. d5 {[%clk 0:02:27.1]} 14... Ne5 {[%clk 0:01:28.3]} 15. Be3
{[%clk 0:02:27.4]} 15... Qxb2 {[%clk 0:00:45.6]} 16. Bd4 {[%clk 0:02:22.3]}
16... Ned7 {[%clk 0:00:18.6]} 17. Rab1 {[%clk 0:02:19.3]} 17... b5 {[%clk
0:00:12.3]} 18. Nxb5 {[%clk 0:02:09.3]} 18... Qd2 {[%clk 0:00:13]} 19. Rfd1
{[%clk 0:02:00.9]} 19... Qe2 {[%clk 0:00:13.9]} 20. Nc3 {[%clk 0:01:53.6]} 20...
Qg4 {[%clk 0:00:14.5]} 21. Qxc4 {[%clk 0:01:50.9]} 21... Rac8 {[%clk 0:00:10.9]}
22. Qa6 {[%clk 0:01:46.8]} 22... Nc5 {[%clk 0:00:08]} 23. Qxa7 {[%clk
0:01:47.2]} 1-0

[Event "*** Titled Tuesday Blitz"]
[Site "Chess.com"]
[Date "2018.01.02"]
[Round "1"]
[White "windking123"]
[Black "Aleksey_Sorokin"]
[Result "0-1"]
[WhiteElo "2410"]
[BlackElo "2775"]
[TimeControl "180+2"]
[EndTime "13:06:18 PST"]
[Termination "Aleksey_Sorokin won by resignation"]

1. Nf3 {[%clk 0:03:00.1]} 1... Nf6 {[%clk 0:03:00.3]} 2. c4 {[%clk 0:03:01.3]}
2... g6 {[%clk 0:02:57.8]} 3. g3 {[%clk 0:03:01.8]} 3... Bg7 {[%clk 0:02:58.5]}
4. Bg2 {[%clk 0:03:03.3]} 4... O-O {[%clk 0:02:59.6]} 5. O-O {[%clk 0:03:04.8]}
5... d5 {[%clk 0:03:00]} 6. cxd5 {[%clk 0:03:02.5]} 6... Nxd5 {[%clk 0:03:00.2]}
7. d4 {[%clk 0:03:04]} 7... Nb6 {[%clk 0:03:00.5]} 8. Nc3 {[%clk 0:03:03.7]}
8... Nc6 {[%clk 0:03:01.7]} 9. d5 {[%clk 0:02:54]} 9... Na5 {[%clk 0:02:54.1]}
10. e4 {[%clk 0:02:51.7]} 10... c6 {[%clk 0:02:53.4]} 11. dxc6 {[%clk
0:02:44.4]} 11... Nxc6 {[%clk 0:02:52.4]} 12. Qe2 {[%clk 0:02:45.1]} 12... Bg4
{[%clk 0:02:51.9]} 13. Be3 {[%clk 0:02:35.9]} 13... Nd4 {[%clk 0:02:36.8]} 14.
Bxd4 {[%clk 0:02:31.3]} 14... Bxd4 {[%clk 0:02:37.8]} 15. Rfd1 {[%clk
0:02:18.5]} 15... e5 {[%clk 0:02:37.5]} 16. h3 {[%clk 0:02:19.5]} 16... Bxf3
{[%clk 0:02:37.3]} 17. Bxf3 {[%clk 0:02:20.9]} 17... a6 {[%clk 0:02:35.9]} 18.
Kg2 {[%clk 0:02:20.8]} 18... Qe7 {[%clk 0:02:35.8]} 19. Nd5 {[%clk 0:02:20.6]}
19... Nxd5 {[%clk 0:02:36.1]} 20. exd5 {[%clk 0:02:21.9]} 20... Qb4 {[%clk
0:02:33.7]} 21. a3 {[%clk 0:02:19.2]} 21... Qb6 {[%clk 0:02:33.5]} 22. Rd2
{[%clk 0:02:13.2]} 22... Rac8 {[%clk 0:02:32.9]} 23. Rad1 {[%clk 0:02:14.5]}
23... a5 {[%clk 0:02:29.1]} 24. Be4 {[%clk 0:02:10.5]} 24... Rfe8 {[%clk
0:02:21]} 25. f4 {[%clk 0:02:06.2]} 25... Be3 {[%clk 0:02:05.8]} 26. Rd3 {[%clk
0:01:57.7]} 26... exf4 {[%clk 0:02:04.2]} 27. Bf3 {[%clk 0:01:59.1]} 27... Bc1
{[%clk 0:01:49.9]} 28. Qf1 {[%clk 0:01:43.4]} 28... Qxb2+ {[%clk 0:01:48.7]} 29.
Kh1 {[%clk 0:01:44.6]} 29... fxg3 {[%clk 0:01:49.9]} 30. Bg2 {[%clk 0:01:43.1]}
30... Re2 {[%clk 0:01:37.5]} 31. d6 {[%clk 0:01:39.7]} 31... Rf2 {[%clk
0:01:38.5]} 32. d7 {[%clk 0:01:33.7]} 32... Rxf1+ {[%clk 0:01:36.1]} 33. Rxf1
{[%clk 0:01:33.8]} 33... Rd8 {[%clk 0:01:37]} 34. Re1 {[%clk 0:01:30.4]} 34...
Bg5 {[%clk 0:01:32.8]} 35. Rxg3 {[%clk 0:01:28.8]} 35... Bh4 {[%clk 0:01:32.1]}
36. Re8+ {[%clk 0:01:28.9]} 36... Kg7 {[%clk 0:01:32.6]} 37. Rg4 {[%clk
0:01:29.2]} 37... Bf6 {[%clk 0:01:22.2]} 38. Rxd8 {[%clk 0:01:29.3]} 38... Bxd8
{[%clk 0:01:22.6]} 39. Re4 {[%clk 0:01:29.8]} 39... Qc1+ {[%clk 0:01:20.4]} 40.
Kh2 {[%clk 0:01:29.6]} 40... Bc7+ {[%clk 0:01:21.2]} 0-1

[Event "*** Titled Tuesday Blitz"]
[Site "Chess.com"]
[Date "2018.01.02"]
[Round "1"]
[White "NTBT_DHS"]
[Black "SquashMaestro"]
[Result "1-0"]
[WhiteElo "2535"]
[BlackElo "2253"]
[TimeControl "180+2"]
[EndTime "13:06:18 PST"]
[Termination "NTBT_DHS won by resignation"]

1. d4 {[%clk 0:03:01.9]} 1... d5 {[%clk 0:02:59.2]} 2. c4 {[%clk 0:03:01.9]}
2... c6 {[%clk 0:02:59.5]} 3. Nf3 {[%clk 0:03:02.5]} 3... Nf6 {[%clk 0:02:59]}
4. Nc3 {[%clk 0:03:02.4]} 4... g6 {[%clk 0:02:57.2]} 5. cxd5 {[%clk 0:02:54.7]}
5... Nxd5 {[%clk 0:02:56.8]} 6. e4 {[%clk 0:02:55.5]} 6... Nc7 {[%clk
0:02:54.1]} 7. Bc4 {[%clk 0:02:43.7]} 7... Bg7 {[%clk 0:02:54.2]} 8. h4 {[%clk
0:02:39.8]} 8... h5 {[%clk 0:02:41.9]} 9. Be3 {[%clk 0:02:35.7]} 9... O-O {[%clk
0:02:41.4]} 10. Ng5 {[%clk 0:02:25.2]} 10... b5 {[%clk 0:02:38.1]} 11. Bb3
{[%clk 0:02:25.9]} 11... a5 {[%clk 0:02:37.5]} 12. a4 {[%clk 0:02:26.7]} 12...
b4 {[%clk 0:02:34.8]} 13. Ne2 {[%clk 0:02:27.5]} 13... Nd7 {[%clk 0:02:21.3]}
14. Rc1 {[%clk 0:02:28]} 14... Nf6 {[%clk 0:02:09.8]} 15. Nf4 {[%clk 0:02:19.2]}
15... e6 {[%clk 0:01:52.8]} 16. e5 {[%clk 0:01:43.6]} 16... Nfd5 {[%clk
0:01:44.2]} 17. Nxh5 {[%clk 0:01:44.3]} 17... gxh5 {[%clk 0:01:31.8]} 18. Qxh5
{[%clk 0:01:43.5]} 18... Re8 {[%clk 0:01:25.6]} 19. Qxf7+ {[%clk 0:01:41.6]}
19... Kh8 {[%clk 0:01:26.6]} 20. Qh5+ {[%clk 0:01:28.4]} 20... Kg8 {[%clk
0:01:27.1]} 21. Qh7+ {[%clk 0:01:30.3]} 21... Kf8 {[%clk 0:01:27.7]} 22. Rh3
{[%clk 0:01:31.9]} 22... Re7 {[%clk 0:01:22.1]} 23. Rf3+ {[%clk 0:01:23.6]}
23... Ke8 {[%clk 0:01:22.5]} 24. Ne4 {[%clk 0:01:22]} 24... Na6 {[%clk
0:01:02.8]} 25. Rxc6 {[%clk 0:01:16.8]} 25... Kd7 {[%clk 0:00:58.8]} 26. Rd6+
{[%clk 0:01:17.4]} 26... Kc7 {[%clk 0:00:54.1]} 27. Rxd8 {[%clk 0:01:18.3]}
27... Kxd8 {[%clk 0:00:56]} 28. Bxd5 {[%clk 0:01:19]} 28... exd5 {[%clk
0:00:56.8]} 29. Qg8+ {[%clk 0:01:20.3]} 29... Kc7 {[%clk 0:00:56.3]} 30. Qxd5
{[%clk 0:01:21.8]} 30... Bb7 {[%clk 0:00:55.9]} 31. Qd6+ {[%clk 0:01:23]} 1-0

[Event "*** Titled Tuesday Blitz"]
[Site "Chess.com"]
[Date "2018.01.02"]
[Round "1"]
[White "Squirlolz"]
[Black "Saitama_Hero"]
[Result "1-0"]
[WhiteElo "2480"]
[BlackElo "2161"]
[TimeControl "180+2"]
[EndTime "13:06:18 PST"]
[Termination "Squirlolz won by resignation"]

1. e4 {[%clk 0:03:01.9]} 1... c5 {[%clk 0:02:59.7]} 2. Nc3 {[%clk 0:03:00.7]}
2... Nc6 {[%clk 0:02:57.1]} 3. Bb5 {[%clk 0:03:01.2]} 3... e6 {[%clk 0:02:49.4]}
4. Bxc6 {[%clk 0:02:58]} 4... bxc6 {[%clk 0:02:48.5]} 5. d3 {[%clk 0:02:59.8]}
5... d5 {[%clk 0:02:48.9]} 6. f4 {[%clk 0:02:58.7]} 6... Nf6 {[%clk 0:02:47.7]}
7. e5 {[%clk 0:02:54.7]} 7... Nd7 {[%clk 0:02:49]} 8. Nf3 {[%clk 0:02:56.1]}
8... Rb8 {[%clk 0:02:49.1]} 9. O-O {[%clk 0:02:56]} 9... Be7 {[%clk 0:02:48.6]}
10. b3 {[%clk 0:02:55.5]} 10... O-O {[%clk 0:02:49.2]} 11. Na4 {[%clk 0:02:56]}
11... Nb6 {[%clk 0:02:44.8]} 12. Nb2 {[%clk 0:02:49.5]} 12... Ba6 {[%clk
0:02:43.6]} 13. c4 {[%clk 0:02:50.1]} 13... Qc7 {[%clk 0:02:42.5]} 14. Be3
{[%clk 0:02:46.9]} 14... Rfd8 {[%clk 0:02:43.4]} 15. Qe2 {[%clk 0:02:45.5]}
15... g6 {[%clk 0:02:25.8]} 16. Qf2 {[%clk 0:02:44.2]} 16... Nd7 {[%clk
0:02:25.5]} 17. Na4 {[%clk 0:02:43.1]} 17... Qa5 {[%clk 0:02:24.3]} 18. Rac1
{[%clk 0:02:36.6]} 18... d4 {[%clk 0:02:07.2]} 19. Bd2 {[%clk 0:02:35.5]} 19...
Qc7 {[%clk 0:02:08.7]} 20. Ng5 {[%clk 0:02:06]} 20... Nb6 {[%clk 0:02:09.6]} 21.
Ba5 {[%clk 0:01:51.8]} 21... Qd7 {[%clk 0:01:55.4]} 22. Ne4 {[%clk 0:01:46.2]}
22... Nxa4 {[%clk 0:01:54.5]} 23. Bxd8 {[%clk 0:01:46.9]} 23... Bxd8 {[%clk
0:01:49.3]} 24. bxa4 {[%clk 0:01:46]} 24... Kg7 {[%clk 0:01:50.8]} 25. Rb1
{[%clk 0:01:22.8]} 25... Rxb1 {[%clk 0:01:43.1]} 26. Rxb1 {[%clk 0:01:22.4]}
26... Be7 {[%clk 0:01:44.8]} 27. Rb8 {[%clk 0:01:14.2]} 27... Qc7 {[%clk
0:01:46]} 28. Qb2 {[%clk 0:01:14.8]} 28... Bc8 {[%clk 0:01:45.7]} 29. h3 {[%clk
0:01:07.6]} 29... h6 {[%clk 0:01:46.9]} 30. Ra8 {[%clk 0:00:48.6]} 30... Bd7
{[%clk 0:01:41.7]} 31. Qb8 {[%clk 0:00:45.3]} 31... Qxb8 {[%clk 0:01:30.2]} 32.
Rxb8 {[%clk 0:00:47.2]} 1-0